[Event "Early-Titled-Tuesday-Blitz-October-03-2023"]
[Site "Chess.com"]
[Date "2023.10.03"]
[Round "2"]
[White "swayamsm"]
[Black "NodariousBIG"]
[Result "0-1"]
[WhiteElo "2578"]
[BlackElo "2844"]
[TimeControl "180+1"]
[EndTime "8:17:43 PDT"]
[Termination "NodariousBIG won on time"]

1. d4 {[%clk 0:01:05]} 1... d5 {[%clk 0:02:58.6]} 2. Nf3 {[%clk 0:01:05.3]} 2...
Nf6 {[%clk 0:02:58.1]} 3. c4 {[%clk 0:01:06.2]} 3... e6 {[%clk 0:02:57.7]} 4.
Nc3 {[%clk 0:01:06.3]} 4... dxc4 {[%clk 0:02:57.1]} 5. Bf4 {[%clk 0:01:03]} 5...
a6 {[%clk 0:02:53.6]} 6. a4 {[%clk 0:01:02.2]} 6... Nc6 {[%clk 0:02:52.6]} 7. e3
{[%clk 0:01:02.5]} 7... Na5 {[%clk 0:02:49.8]} 8. Nd2 {[%clk 0:01:02.4]} 8...
Nd5 {[%clk 0:02:34.4]} 9. Nxc4 {[%clk 0:00:55]} 9... Nxc4 {[%clk 0:02:30.7]} 10.
Bxc4 {[%clk 0:00:55.9]} 10... Nxf4 {[%clk 0:02:31.1]} 11. exf4 {[%clk
0:00:54.8]} 11... Bb4 {[%clk 0:01:58.6]} 12. O-O {[%clk 0:00:53.6]} 12... O-O
{[%clk 0:01:59]} 13. Qd3 {[%clk 0:00:47.3]} 13... Qd6 {[%clk 0:01:42.1]} 14. g3
{[%clk 0:00:45.7]} 14... Rd8 {[%clk 0:01:42.2]} 15. Rfd1 {[%clk 0:00:38.3]}
15... Bxc3 {[%clk 0:01:39.3]} 16. bxc3 {[%clk 0:00:37.3]} 16... b6 {[%clk
0:01:39.5]} 17. Qf3 {[%clk 0:00:34.4]} 17... Rb8 {[%clk 0:01:39.8]} 18. Bd3
{[%clk 0:00:33.7]} 18... Bb7 {[%clk 0:01:37.6]} 19. Be4 {[%clk 0:00:32.9]} 19...
Bxe4 {[%clk 0:01:37.8]} 20. Qxe4 {[%clk 0:00:32.9]} 20... Qd5 {[%clk 0:01:38.2]}
21. Qxd5 {[%clk 0:00:24.9]} 21... Rxd5 {[%clk 0:01:39.1]} 22. Kf1 {[%clk
0:00:23.5]} 22... h5 {[%clk 0:01:37.6]} 23. h4 {[%clk 0:00:22.3]} 23... Rbd8
{[%clk 0:01:35.7]} 24. Ke2 {[%clk 0:00:22.6]} 24... Kf8 {[%clk 0:01:35.8]} 25.
Ke3 {[%clk 0:00:22.9]} 25... Ke7 {[%clk 0:01:36.3]} 26. c4 {[%clk 0:00:23.2]}
26... Ra5 {[%clk 0:01:36.4]} 27. Rdb1 {[%clk 0:00:20.9]} 27... Kf6 {[%clk
0:01:32.8]} 28. Rb4 {[%clk 0:00:21]} 28... Kf5 {[%clk 0:01:28.2]} 29. f3 {[%clk
0:00:18.8]} 29... Kf6 {[%clk 0:01:28.5]} 30. Rab1 {[%clk 0:00:17.9]} 30... Ke7
{[%clk 0:01:27.9]} 31. R1b3 {[%clk 0:00:18.3]} 31... Rh8 {[%clk 0:01:27.5]} 32.
Rd3 {[%clk 0:00:18.1]} 32... Rh6 {[%clk 0:01:27.2]} 33. d5 {[%clk 0:00:15.3]}
33... exd5 {[%clk 0:01:26.1]} 34. cxd5 {[%clk 0:00:15.2]} 34... Rd6 {[%clk
0:01:25.7]} 35. Re4+ {[%clk 0:00:15.7]} 35... Kd7 {[%clk 0:01:25]} 36. Red4
{[%clk 0:00:16.6]} 36... b5 {[%clk 0:01:21]} 37. axb5 {[%clk 0:00:16.3]} 37...
Rxb5 {[%clk 0:01:21.6]} 38. f5 {[%clk 0:00:16.8]} 38... Kc8 {[%clk 0:01:20.6]}
39. Kf4 {[%clk 0:00:15.7]} 39... f6 {[%clk 0:01:18.4]} 40. g4 {[%clk 0:00:14.9]}
40... Kb7 {[%clk 0:01:16.5]} 41. gxh5 {[%clk 0:00:15]} 41... Kb6 {[%clk
0:01:15.3]} 42. Kg4 {[%clk 0:00:14.6]} 42... Rb1 {[%clk 0:01:12.6]} 43. h6
{[%clk 0:00:10.9]} 43... gxh6 {[%clk 0:01:12.1]} 44. Kh5 {[%clk 0:00:11.8]}
44... Rd8 {[%clk 0:01:11.9]} 45. Kg6 {[%clk 0:00:10.9]} 45... Rd6 {[%clk
0:01:09.7]} 46. Kxh6 {[%clk 0:00:10.9]} 46... a5 {[%clk 0:01:08.8]} 47. h5
{[%clk 0:00:06.4]} 47... Kb5 {[%clk 0:01:06.2]} 48. Kg7 {[%clk 0:00:06.4]} 48...
a4 {[%clk 0:01:04.9]} 49. h6 {[%clk 0:00:06.6]} 49... Rh1 {[%clk 0:01:04.6]} 50.
Rg4 {[%clk 0:00:04.8]} 50... c5 {[%clk 0:01:01.7]} 51. Rg6 {[%clk 0:00:03.4]}
51... c4 {[%clk 0:01:02.1]} 52. Re3 {[%clk 0:00:03]} 52... Kb4 {[%clk
0:00:58.8]} 53. Rxf6 {[%clk 0:00:01.6]} 53... Rxf6 {[%clk 0:00:56.3]} 0-1

[Event "Early-Titled-Tuesday-Blitz-October-03-2023"]
[Site "Chess.com"]
[Date "2023.10.03"]
[Round "2"]
[White "nrvignesh"]
[Black "zajka-molotok"]
[Result "1/2-1/2"]
[WhiteElo "2822"]
[BlackElo "2587"]
[TimeControl "180+1"]
[EndTime "8:17:43 PDT"]
[Termination "Game drawn by repetition"]

1. e4 {[%clk 0:03:00.9]} 1... c6 {[%clk 0:02:59]} 2. Nc3 {[%clk 0:02:58.6]} 2...
d5 {[%clk 0:02:59.9]} 3. Nf3 {[%clk 0:02:58.8]} 3... Bg4 {[%clk 0:02:59.4]} 4.
h3 {[%clk 0:02:58.8]} 4... Bxf3 {[%clk 0:02:58.8]} 5. Qxf3 {[%clk 0:02:59.5]}
5... e6 {[%clk 0:02:58.9]} 6. d4 {[%clk 0:02:57.2]} 6... Nf6 {[%clk 0:02:55.2]}
7. a3 {[%clk 0:02:47.2]} 7... dxe4 {[%clk 0:02:49.2]} 8. Qe3 {[%clk 0:02:47.5]}
8... Nd5 {[%clk 0:02:42.6]} 9. Qxe4 {[%clk 0:02:46.5]} 9... Nxc3 {[%clk
0:02:42]} 10. bxc3 {[%clk 0:02:45.3]} 10... Be7 {[%clk 0:02:37.3]} 11. Bd3
{[%clk 0:02:44.9]} 11... Qd5 {[%clk 0:02:36.1]} 12. Qg4 {[%clk 0:02:36.5]} 12...
O-O {[%clk 0:02:33.4]} 13. O-O {[%clk 0:02:35.6]} 13... Nd7 {[%clk 0:02:32.4]}
14. c4 {[%clk 0:02:35.3]} 14... Qa5 {[%clk 0:02:28.3]} 15. Bh6 {[%clk 0:02:28]}
15... Bf6 {[%clk 0:02:27.5]} 16. Qe4 {[%clk 0:02:11.9]} 16... Qf5 {[%clk
0:02:16.3]} 17. Qe2 {[%clk 0:01:58.1]} 17... Qa5 {[%clk 0:02:09.7]} 18. Bd2
{[%clk 0:01:52.6]} 18... Qc7 {[%clk 0:02:02.6]} 19. Qe4 {[%clk 0:01:46.8]} 19...
g6 {[%clk 0:02:01.8]} 20. c5 {[%clk 0:01:43.2]} 20... Bg7 {[%clk 0:01:56.1]} 21.
f4 {[%clk 0:01:25.3]} 21... Rad8 {[%clk 0:01:49.4]} 22. c3 {[%clk 0:01:18.2]}
22... b6 {[%clk 0:01:27.9]} 23. cxb6 {[%clk 0:01:17.3]} 23... axb6 {[%clk
0:01:28.8]} 24. Qe2 {[%clk 0:00:38.7]} 24... c5 {[%clk 0:01:23.7]} 25. Be3
{[%clk 0:00:38.9]} 25... cxd4 {[%clk 0:01:15.4]} 26. cxd4 {[%clk 0:00:39.8]}
26... Nf6 {[%clk 0:01:15.1]} 27. Rfc1 {[%clk 0:00:39.8]} 27... Qd6 {[%clk
0:01:08.3]} 28. Bc4 {[%clk 0:00:33.4]} 28... Nd5 {[%clk 0:01:06.9]} 29. Bxd5
{[%clk 0:00:33.6]} 29... Qxd5 {[%clk 0:01:07.5]} 30. Rd1 {[%clk 0:00:29.5]}
30... Qe4 {[%clk 0:01:02.5]} 31. Qd3 {[%clk 0:00:27.9]} 31... Qxd3 {[%clk
0:00:58.6]} 32. Rxd3 {[%clk 0:00:28.8]} 32... Rd5 {[%clk 0:00:55.7]} 33. Rb1
{[%clk 0:00:29]} 33... b5 {[%clk 0:00:55]} 34. Kf2 {[%clk 0:00:26]} 34... Rc8
{[%clk 0:00:53.5]} 35. Rb2 {[%clk 0:00:23.1]} 35... Rc4 {[%clk 0:00:52.4]} 36.
g3 {[%clk 0:00:23.3]} 36... Bxd4 {[%clk 0:00:29.1]} 37. Rxd4 {[%clk 0:00:21]}
37... Rcxd4 {[%clk 0:00:29.6]} 38. Bxd4 {[%clk 0:00:21.2]} 38... Rxd4 {[%clk
0:00:29.8]} 39. Rxb5 {[%clk 0:00:21.9]} 39... Rd3 {[%clk 0:00:26.3]} 40. a4
{[%clk 0:00:21.2]} 40... Ra3 {[%clk 0:00:25.6]} 41. Ra5 {[%clk 0:00:21.1]} 41...
h5 {[%clk 0:00:24.8]} 42. h4 {[%clk 0:00:20]} 42... Kg7 {[%clk 0:00:24.8]} 43.
Ra7 {[%clk 0:00:19.5]} 43... Kf6 {[%clk 0:00:25]} 44. a5 {[%clk 0:00:20.4]}
44... Kg7 {[%clk 0:00:16.5]} 45. a6 {[%clk 0:00:20.7]} 45... Kf6 {[%clk
0:00:16.4]} 46. Kg2 {[%clk 0:00:21.4]} 46... Kg7 {[%clk 0:00:16.1]} 47. Kh3
{[%clk 0:00:21.5]} 47... Ra2 {[%clk 0:00:15]} 48. Ra8 {[%clk 0:00:21.3]} 48...
Kf6 {[%clk 0:00:14.6]} 49. Ra7 {[%clk 0:00:19.7]} 49... Kg7 {[%clk 0:00:14.1]}
50. Ra8 {[%clk 0:00:20.2]} 50... Kf6 {[%clk 0:00:13.5]} 51. Ra7 {[%clk
0:00:20.5]} 51... Kg7 {[%clk 0:00:13.8]} 1/2-1/2

[Event "Early-Titled-Tuesday-Blitz-October-03-2023"]
[Site "Chess.com"]
[Date "2023.10.03"]
[Round "2"]
[White "carokannlover213"]
[Black "Wizard_97"]
[Result "1-0"]
[WhiteElo "2753"]
[BlackElo "2524"]
[TimeControl "180+1"]
[EndTime "8:17:44 PDT"]
[Termination "carokannlover213 won by resignation"]

1. e4 {[%clk 0:03:00.9]} 1... c5 {[%clk 0:02:59.9]} 2. Nf3 {[%clk 0:03:00.4]}
2... d6 {[%clk 0:03:00.6]} 3. d4 {[%clk 0:02:56.7]} 3... cxd4 {[%clk 0:03:01.5]}
4. Nxd4 {[%clk 0:02:56.6]} 4... Nf6 {[%clk 0:03:02.2]} 5. Nc3 {[%clk 0:02:57]}
5... g6 {[%clk 0:03:02.9]} 6. Be2 {[%clk 0:02:52.2]} 6... Bg7 {[%clk 0:03:03.4]}
7. O-O {[%clk 0:02:52.9]} 7... O-O {[%clk 0:03:03.7]} 8. Bg5 {[%clk 0:02:53.6]}
8... Nc6 {[%clk 0:03:04.4]} 9. Re1 {[%clk 0:02:48.7]} 9... Bd7 {[%clk 0:02:58]}
10. Nb3 {[%clk 0:02:48]} 10... Rc8 {[%clk 0:02:57.2]} 11. Bf1 {[%clk 0:02:47.4]}
11... Na5 {[%clk 0:02:57.4]} 12. Nd5 {[%clk 0:02:39]} 12... Nc4 {[%clk
0:02:46.4]} 13. Nxf6+ {[%clk 0:02:24.1]} 13... exf6 {[%clk 0:02:46]} 14. Bc1
{[%clk 0:02:24.6]} 14... Be6 {[%clk 0:02:44.1]} 15. Nd4 {[%clk 0:02:20]} 15...
Qe7 {[%clk 0:02:41.9]} 16. Nf5 {[%clk 0:01:52.5]} 16... Bxf5 {[%clk 0:02:08.8]}
17. exf5 {[%clk 0:01:53.4]} 17... Qc7 {[%clk 0:02:08.8]} 18. c3 {[%clk
0:01:39.7]} 18... Rfe8 {[%clk 0:02:05.6]} 19. b3 {[%clk 0:01:22]} 19... Ne5
{[%clk 0:02:01]} 20. c4 {[%clk 0:01:22.5]} 20... Rcd8 {[%clk 0:01:44.8]} 21. Be3
{[%clk 0:01:20.5]} 21... b6 {[%clk 0:01:36.3]} 22. Qd5 {[%clk 0:01:13.9]} 22...
Ng4 {[%clk 0:01:07.2]} 23. Bd4 {[%clk 0:01:01.3]} 23... Qd7 {[%clk 0:00:47.6]}
24. h3 {[%clk 0:00:59.6]} 24... Ne5 {[%clk 0:00:43.5]} 25. fxg6 {[%clk
0:00:46.5]} 25... hxg6 {[%clk 0:00:41.9]} 26. f4 {[%clk 0:00:44.7]} 26... Nc6
{[%clk 0:00:38.1]} 27. Bc3 {[%clk 0:00:45.2]} 27... Ne7 {[%clk 0:00:36.9]} 28.
Qf3 {[%clk 0:00:42.2]} 28... d5 {[%clk 0:00:34.9]} 29. Rad1 {[%clk 0:00:42.2]}
29... Qc7 {[%clk 0:00:35.3]} 30. cxd5 {[%clk 0:00:31.4]} 30... Nf5 {[%clk
0:00:19.7]} 31. Rxe8+ {[%clk 0:00:29.4]} 31... Rxe8 {[%clk 0:00:20.6]} 32. Bb4
{[%clk 0:00:23.8]} 32... Re3 {[%clk 0:00:19.7]} 33. d6 {[%clk 0:00:16.4]} 33...
Qd7 {[%clk 0:00:06.5]} 34. Qa8+ {[%clk 0:00:15.4]} 34... Kh7 {[%clk 0:00:07.2]}
35. Qb8 {[%clk 0:00:10.8]} 35... Ng3 {[%clk 0:00:04.5]} 36. Qc7 {[%clk
0:00:10.5]} 36... Qf5 {[%clk 0:00:04.5]} 37. d7 {[%clk 0:00:09.8]} 37... Qxf4
{[%clk 0:00:05]} 38. Qxf4 {[%clk 0:00:08.1]} 38... Ne2+ {[%clk 0:00:04.1]} 39.
Bxe2 {[%clk 0:00:08.1]} 39... Rxe2 {[%clk 0:00:05]} 40. d8=Q {[%clk 0:00:08]}
1-0

[Event "Early-Titled-Tuesday-Blitz-October-03-2023"]
[Site "Chess.com"]
[Date "2023.10.03"]
[Round "2"]
[White "BilodeauA"]
[Black "aa175"]
[Result "1-0"]
[WhiteElo "2913"]
[BlackElo "2607"]
[TimeControl "180+1"]
[EndTime "8:17:49 PDT"]
[Termination "BilodeauA won by resignation"]

1. e4 {[%clk 0:03:00.3]} 1... e5 {[%clk 0:03:00.1]} 2. Nf3 {[%clk 0:03:00.5]}
2... Nf6 {[%clk 0:02:59.5]} 3. Nxe5 {[%clk 0:02:57]} 3... d6 {[%clk 0:02:59.8]}
4. Nf3 {[%clk 0:02:57.5]} 4... Nxe4 {[%clk 0:03:00.2]} 5. Nc3 {[%clk 0:02:58.3]}
5... Nxc3 {[%clk 0:03:00.5]} 6. dxc3 {[%clk 0:02:59.2]} 6... Be7 {[%clk
0:03:00.3]} 7. Bd3 {[%clk 0:02:58.8]} 7... Nd7 {[%clk 0:03:00.8]} 8. Be3 {[%clk
0:02:58.1]} 8... Nf6 {[%clk 0:03:00.4]} 9. Qe2 {[%clk 0:02:58.5]} 9... O-O
{[%clk 0:03:01.1]} 10. O-O-O {[%clk 0:02:58.3]} 10... c5 {[%clk 0:02:54.1]} 11.
Kb1 {[%clk 0:02:57.3]} 11... Qa5 {[%clk 0:02:47.6]} 12. c4 {[%clk 0:02:52.2]}
12... b5 {[%clk 0:02:40.3]} 13. Bd2 {[%clk 0:02:50.3]} 13... Qc7 {[%clk
0:02:37.5]} 14. cxb5 {[%clk 0:02:50.8]} 14... a6 {[%clk 0:02:32.6]} 15. b6
{[%clk 0:02:50.4]} 15... Qxb6 {[%clk 0:02:28.3]} 16. Qxe7 {[%clk 0:02:46.5]}
16... Re8 {[%clk 0:02:13]} 17. Bxh7+ {[%clk 0:02:46]} 17... Kxh7 {[%clk
0:02:08.7]} 18. Ng5+ {[%clk 0:02:37.2]} 18... Kh8 {[%clk 0:02:07.4]} 19. Qxf7
{[%clk 0:02:21.6]} 19... Bf5 {[%clk 0:02:07.5]} 20. Bc3 {[%clk 0:02:10.6]} 20...
Ra7 {[%clk 0:01:44.7]} 21. Qc4 {[%clk 0:01:57.1]} 21... d5 {[%clk 0:01:44.5]}
22. Qh4+ {[%clk 0:01:43.7]} 22... Kg8 {[%clk 0:01:43.3]} 23. Rhe1 {[%clk
0:01:35.8]} 23... Rae7 {[%clk 0:01:38.9]} 24. Rxe7 {[%clk 0:01:35.5]} 24... Rxe7
{[%clk 0:01:39.8]} 25. Bxf6 {[%clk 0:01:29.7]} 25... Qxf6 {[%clk 0:01:37.4]} 26.
Nf3 {[%clk 0:01:16.4]} 26... Bxc2+ {[%clk 0:01:19.6]} 27. Kxc2 {[%clk
0:01:12.7]} 27... Re2+ {[%clk 0:01:19.7]} 28. Rd2 {[%clk 0:00:38.4]} 28... Rxd2+
{[%clk 0:01:19.3]} 29. Kxd2 {[%clk 0:00:39.3]} 29... Qxb2+ {[%clk 0:01:19.4]}
30. Ke3 {[%clk 0:00:38.6]} 30... Qc1+ {[%clk 0:01:13.4]} 31. Ke2 {[%clk
0:00:38.8]} 31... Qc2+ {[%clk 0:01:09.6]} 32. Nd2 {[%clk 0:00:38.9]} 32... Qxa2
{[%clk 0:01:09.6]} 33. Qd8+ {[%clk 0:00:35.9]} 33... Kh7 {[%clk 0:01:09.4]} 34.
Qd6 {[%clk 0:00:33.4]} 34... d4 {[%clk 0:01:03.4]} 35. Qxc5 {[%clk 0:00:30.5]}
35... Qe6+ {[%clk 0:01:00.4]} 36. Kd3 {[%clk 0:00:28.8]} 36... Qg6+ {[%clk
0:00:59.1]} 37. Ne4 {[%clk 0:00:29]} 37... Qxg2 {[%clk 0:00:57.6]} 38. Qf5+
{[%clk 0:00:29]} 38... Kg8 {[%clk 0:00:38.6]} 39. Ng5 {[%clk 0:00:28.7]} 39...
Qf1+ {[%clk 0:00:39.1]} 40. Kd2 {[%clk 0:00:28.8]} 40... Qc4 {[%clk 0:00:31.2]}
41. Qe6+ {[%clk 0:00:29.1]} 41... Qxe6 {[%clk 0:00:31.4]} 42. Nxe6 {[%clk
0:00:30]} 42... Kf7 {[%clk 0:00:23.8]} 43. Nxd4 {[%clk 0:00:30.1]} 43... Kf6
{[%clk 0:00:24.4]} 44. Nc6 {[%clk 0:00:22]} 44... Kf5 {[%clk 0:00:22.8]} 45. Ke3
{[%clk 0:00:22.2]} 45... Kg4 {[%clk 0:00:23.3]} 46. Ke4 {[%clk 0:00:12.6]} 46...
Kh3 {[%clk 0:00:17.7]} 47. Kf5 {[%clk 0:00:12.9]} 47... Kxh2 {[%clk 0:00:16.1]}
48. Kg6 {[%clk 0:00:13.4]} 48... Kg2 {[%clk 0:00:15.5]} 49. f4 {[%clk
0:00:13.7]} 49... Kf3 {[%clk 0:00:15.7]} 50. f5 {[%clk 0:00:14.3]} 50... Kf4
{[%clk 0:00:15.7]} 51. Nd4 {[%clk 0:00:13.7]} 51... Ke4 {[%clk 0:00:11.8]} 52.
Kxg7 {[%clk 0:00:12.4]} 52... Kxd4 {[%clk 0:00:12.4]} 53. f6 {[%clk 0:00:13.3]}
53... a5 {[%clk 0:00:12.3]} 54. f7 {[%clk 0:00:14.2]} 54... a4 {[%clk
0:00:12.5]} 55. f8=Q {[%clk 0:00:15.1]} 55... Kc4 {[%clk 0:00:12.6]} 56. Qa3
{[%clk 0:00:15.3]} 1-0

[Event "Early-Titled-Tuesday-Blitz-October-03-2023"]
[Site "Chess.com"]
[Date "2023.10.03"]
[Round "2"]
[White "crazy_but_lazy"]
[Black "shimastream"]
[Result "0-1"]
[WhiteElo "2621"]
[BlackElo "2961"]
[TimeControl "180+1"]
[EndTime "8:17:51 PDT"]
[Termination "shimastream won by resignation"]

1. d4 {[%clk 0:02:55.4]} 1... Nf6 {[%clk 0:02:54.4]} 2. Nf3 {[%clk 0:02:55.4]}
2... d6 {[%clk 0:02:54.2]} 3. Nc3 {[%clk 0:02:52]} 3... g6 {[%clk 0:02:51.5]} 4.
e4 {[%clk 0:02:52.1]} 4... Bg7 {[%clk 0:02:52]} 5. Bd3 {[%clk 0:02:40.4]} 5...
O-O {[%clk 0:02:48.9]} 6. O-O {[%clk 0:02:40.8]} 6... Nc6 {[%clk 0:02:42.7]} 7.
h3 {[%clk 0:02:10.4]} 7... e5 {[%clk 0:02:35.7]} 8. dxe5 {[%clk 0:01:57.4]} 8...
Nxe5 {[%clk 0:02:32.9]} 9. Nxe5 {[%clk 0:01:55.8]} 9... dxe5 {[%clk 0:02:33.8]}
10. Bg5 {[%clk 0:01:54.7]} 10... h6 {[%clk 0:02:33.1]} 11. Be3 {[%clk
0:01:54.6]} 11... Qe7 {[%clk 0:02:32.4]} 12. Qe2 {[%clk 0:01:48.9]} 12... c6
{[%clk 0:02:30.7]} 13. a3 {[%clk 0:01:43.4]} 13... Nh5 {[%clk 0:02:27.5]} 14.
Bc4 {[%clk 0:01:36.6]} 14... Nf4 {[%clk 0:02:26]} 15. Qf3 {[%clk 0:01:35.2]}
15... Qf6 {[%clk 0:02:24.3]} 16. Kh2 {[%clk 0:01:19.7]} 16... Ne6 {[%clk
0:02:10.1]} 17. Qxf6 {[%clk 0:01:18.5]} 17... Bxf6 {[%clk 0:02:09.9]} 18. Bxh6
{[%clk 0:01:19]} 18... Rd8 {[%clk 0:02:10.6]} 19. Be3 {[%clk 0:01:18.8]} 19...
Nd4 {[%clk 0:02:10.6]} 20. Bxd4 {[%clk 0:01:02.7]} 20... exd4 {[%clk 0:02:05.6]}
21. Ne2 {[%clk 0:00:58.8]} 21... b5 {[%clk 0:02:04.5]} 22. Bd3 {[%clk
0:00:56.2]} 22... Rb8 {[%clk 0:02:03.6]} 23. a4 {[%clk 0:00:53.8]} 23... a6
{[%clk 0:02:03.6]} 24. axb5 {[%clk 0:00:54]} 24... axb5 {[%clk 0:02:04.5]} 25.
b3 {[%clk 0:00:50]} 25... c5 {[%clk 0:02:03.2]} 26. Ra5 {[%clk 0:00:46.3]} 26...
Bd7 {[%clk 0:02:02.9]} 27. f4 {[%clk 0:00:40.2]} 27... Rdc8 {[%clk 0:02:01.6]}
28. e5 {[%clk 0:00:40.5]} 28... Bg7 {[%clk 0:01:51.1]} 29. Be4 {[%clk
0:00:40.5]} 29... Be6 {[%clk 0:01:47.3]} 30. Ng3 {[%clk 0:00:36.8]} 30... c4
{[%clk 0:01:40.2]} 31. bxc4 {[%clk 0:00:36.1]} 31... bxc4 {[%clk 0:01:41.1]} 32.
Rd1 {[%clk 0:00:36]} 32... d3 {[%clk 0:01:16.4]} 33. cxd3 {[%clk 0:00:35.2]}
33... c3 {[%clk 0:01:17.3]} 34. d4 {[%clk 0:00:27.5]} 34... Rb4 {[%clk
0:01:14.8]} 35. d5 {[%clk 0:00:24.6]} 35... Bd7 {[%clk 0:01:14.8]} 36. e6 {[%clk
0:00:12.8]} 36... fxe6 {[%clk 0:01:10.4]} 37. dxe6 {[%clk 0:00:13.7]} 37... Bxe6
{[%clk 0:01:06.3]} 38. Bxg6 {[%clk 0:00:14.4]} 38... Rxf4 {[%clk 0:01:05.2]} 39.
Nh5 {[%clk 0:00:10.6]} 39... Rf2 {[%clk 0:01:01]} 40. Nxg7 {[%clk 0:00:10.7]}
40... Kxg7 {[%clk 0:01:01.9]} 41. Be4 {[%clk 0:00:11]} 41... Rc4 {[%clk
0:00:59.6]} 42. Rg5+ {[%clk 0:00:05.8]} 42... Kf8 {[%clk 0:00:56.8]} 43. Bd3
{[%clk 0:00:05.1]} 43... c2 {[%clk 0:00:55.6]} 44. Rc1 {[%clk 0:00:05.3]} 44...
Rc3 {[%clk 0:00:56]} 45. Bg6 {[%clk 0:00:03.3]} 45... Ke7 {[%clk 0:00:50.7]} 46.
Rg3 {[%clk 0:00:03.8]} 46... Rc5 {[%clk 0:00:48.8]} 47. Be4 {[%clk 0:00:03.8]}
47... Re2 {[%clk 0:00:44.6]} 48. Bd3 {[%clk 0:00:03.8]} 48... Rd2 {[%clk
0:00:44.9]} 49. Re3 {[%clk 0:00:04.1]} 49... Kf6 {[%clk 0:00:43.1]} 50. Be4
{[%clk 0:00:04.4]} 50... Bd7 {[%clk 0:00:33.2]} 51. Rf1+ {[%clk 0:00:04.7]}
51... Kg7 {[%clk 0:00:32.5]} 52. Rc1 {[%clk 0:00:05.3]} 52... Ba4 {[%clk
0:00:32.4]} 53. Rd3 {[%clk 0:00:04.9]} 53... Rd1 {[%clk 0:00:26.8]} 54. Rdxd1
{[%clk 0:00:01.6]} 54... cxd1=Q {[%clk 0:00:26.7]} 55. Rxc5 {[%clk 0:00:01.6]}
55... Qd6+ {[%clk 0:00:24.2]} 0-1

[Event "Early-Titled-Tuesday-Blitz-October-03-2023"]
[Site "Chess.com"]
[Date "2023.10.03"]
[Round "2"]
[White "Sadykov_Ramil"]
[Black "ContrVersia"]
[Result "0-1"]
[WhiteElo "2603"]
[BlackElo "2895"]
[TimeControl "180+1"]
[EndTime "8:17:53 PDT"]
[Termination "ContrVersia won by resignation"]

1. e4 {[%clk 0:03:00.4]} 1... c5 {[%clk 0:02:57]} 2. Nf3 {[%clk 0:03:00.9]} 2...
a6 {[%clk 0:02:57.4]} 3. c4 {[%clk 0:03:00.7]} 3... Nc6 {[%clk 0:02:56.7]} 4. d4
{[%clk 0:02:56.7]} 4... cxd4 {[%clk 0:02:57.6]} 5. Nxd4 {[%clk 0:02:57.6]} 5...
e5 {[%clk 0:02:58.2]} 6. Nf5 {[%clk 0:02:52.8]} 6... d6 {[%clk 0:02:58.1]} 7.
Ne3 {[%clk 0:02:48.1]} 7... g6 {[%clk 0:02:58]} 8. Nc3 {[%clk 0:02:47.5]} 8...
Bh6 {[%clk 0:02:57.9]} 9. Ned5 {[%clk 0:02:41]} 9... Bxc1 {[%clk 0:02:55.3]} 10.
Rxc1 {[%clk 0:02:41.9]} 10... Be6 {[%clk 0:02:55.7]} 11. Be2 {[%clk 0:02:40.2]}
11... Nd4 {[%clk 0:02:56]} 12. Bg4 {[%clk 0:02:35]} 12... Nf6 {[%clk 0:02:50.3]}
13. Bxe6 {[%clk 0:02:16.3]} 13... fxe6 {[%clk 0:02:47.6]} 14. Nxf6+ {[%clk
0:02:15.1]} 14... Qxf6 {[%clk 0:02:48.5]} 15. O-O {[%clk 0:02:10.2]} 15... O-O
{[%clk 0:02:40.6]} 16. Ne2 {[%clk 0:02:04.7]} 16... Rac8 {[%clk 0:02:36.5]} 17.
Qd3 {[%clk 0:02:01.7]} 17... b5 {[%clk 0:02:11.1]} 18. f3 {[%clk 0:01:53.2]}
18... b4 {[%clk 0:01:10.2]} 19. Rfd1 {[%clk 0:01:49.1]} 19... Nxe2+ {[%clk
0:01:09.2]} 20. Qxe2 {[%clk 0:01:50]} 20... Rc6 {[%clk 0:01:09.8]} 21. Rd2
{[%clk 0:01:40.1]} 21... Qe7 {[%clk 0:01:01]} 22. Rcd1 {[%clk 0:01:39.4]} 22...
a5 {[%clk 0:01:01.3]} 23. b3 {[%clk 0:01:31.9]} 23... a4 {[%clk 0:01:00.3]} 24.
Rd3 {[%clk 0:01:28.4]} 24... axb3 {[%clk 0:01:00]} 25. axb3 {[%clk 0:01:29.3]}
25... Ra8 {[%clk 0:00:59.5]} 26. Qd2 {[%clk 0:01:26.8]} 26... Qa7+ {[%clk
0:00:48.7]} 27. Kh1 {[%clk 0:01:11.8]} 27... Qc5 {[%clk 0:00:46.4]} 28. h3
{[%clk 0:00:57.9]} 28... Raa6 {[%clk 0:00:44.1]} 29. Kh2 {[%clk 0:00:54.6]}
29... Kf7 {[%clk 0:00:36.3]} 30. Kg3 {[%clk 0:00:53.9]} 30... Qb6 {[%clk
0:00:29.8]} 31. Qh6 {[%clk 0:00:51.4]} 31... Kg8 {[%clk 0:00:29.9]} 32. Qg5
{[%clk 0:00:48.8]} 32... Qc7 {[%clk 0:00:25.7]} 33. Qf6 {[%clk 0:00:42.7]} 33...
Qf7 {[%clk 0:00:25.8]} 34. Qd8+ {[%clk 0:00:42.2]} 34... Qf8 {[%clk 0:00:24.5]}
35. Qd7 {[%clk 0:00:37.6]} 35... Qf4+ {[%clk 0:00:24.2]} 36. Kf2 {[%clk
0:00:36.2]} 36... Ra2+ {[%clk 0:00:10.6]} 37. Kg1 {[%clk 0:00:26.7]} 37... Qg3
{[%clk 0:00:09]} 38. R3d2 {[%clk 0:00:18.7]} 38... Rxd2 {[%clk 0:00:07.7]} 39.
Rxd2 {[%clk 0:00:19.6]} 39... Ra6 {[%clk 0:00:05.6]} 40. Qxe6+ {[%clk
0:00:14.3]} 40... Kg7 {[%clk 0:00:04.8]} 41. Qe7+ {[%clk 0:00:10.1]} 41... Kh6
{[%clk 0:00:05.1]} 42. Qf8+ {[%clk 0:00:07.8]} 42... Kh5 {[%clk 0:00:05.6]} 43.
Rd1 {[%clk 0:00:06.5]} 43... Ra2 {[%clk 0:00:05.8]} 0-1